fUSD/lending_fUSD_20241203
["ID","MTS","AMOUNT","RATE_DAILY","PERIOD"]
[344030726,1733230232731,-1473945.45008215,7.7e-05,2]
[344030733,1733230238236,-37577306.5193018,7.7e-05,2]
[344030734,1733230238248,-1562.09138962,7.7e-05,2]
[344030735,1733230238264,-986.78544112,7.7e-05,2]
[344030736,1733230238297,-551.09996,7.7e-05,2]
[344030737,1733230238308,-8514.20669404,7.7e-05,2]
[344030738,1733230238339,-12259.904,7.7e-05,2]
[344030739,1733230238392,-516.5699999,7.7e-05,2]
[344030740,1733230238454,-2724.71670628,7.7e-05,2]
[344030741,1733230238518,-89233.32733792,7.7e-05,2]
[344030742,1733230238534,-4157.18889504,7.7e-05,2]
[344030750,1733230240109,-3904.24594074,7.7e-05,2]
[344030751,1733230240173,-8421.8848539,7.7e-05,2]
[344030752,1733230240297,-568.62496208,7.7e-05,2]
[344030753,1733230240309,-327.45999989,7.7e-05,2]
[344030754,1733230240321,-1200.84460775,7.7e-05,2]
[344030755,1733230240333,-10008.87586219,7.7e-05,2]
[344030771,1733230243215,-456.58469299,7.7e-05,2]
[344030772,1733230243277,-24938.96708648,7.7e-05,2]
[344030774,1733230243288,-2953.01422946,7.7e-05,2]
[344030786,1733230243389,-151108.18474733,7.7e-05,2]
[344030793,1733230243454,-8609.87477394,7.7e-05,2]
[344030795,1733230243466,-949.37207143,7.7e-05,2]
[344030797,1733230243477,-1022.60891091,7.7e-05,2]
[344030800,1733230243488,-1039.22,7.7e-05,2]
[344030802,1733230243500,-308.35359,7.7e-05,2]
[344030804,1733230243511,-2111.82874206,7.7e-05,2]
[344030847,1733230246261,-22241.6927426,7.7e-05,2]
[344030855,1733230247592,-11491.76692488,7.7e-05,2]
[344030856,1733230247604,-12208.29976365,7.7e-05,2]
[344030857,1733230247647,-4074.934,7.7e-05,2]
[344030858,1733230247669,-1426.0,7.7e-05,2]
[344030870,1733230262017,50000.0,0.00013021,25]
[344030884,1733230316831,2448.65857531,0.000125,29]
[344030886,1733230325082,947.31182114,1e-05,2]
[344030890,1733230389040,10000.0,0.000165,30]
[344030891,1733230406146,40000.0,0.000165,30]
[344030897,1733230529511,10000.0,0.000151,44]
[344030900,1733230545291,250.0,7.087e-05,2]
[344030901,1733230593283,10000.0,0.0001511,44]
[344030902,1733230619908,10000.0,0.0001511,44]
[344030903,1733230789833,10773.78451792,7.163e-05,2]
[344030904,1733231075438,9023.83,6.964e-05,2]
[344030908,1733231235527,250.0,6.98e-05,2]
[344030910,1733231337349,500.21,6.999e-05,2]
[344030911,1733231341427,273.23,7.039e-05,2]
[344031505,1733231421663,364.51,6.988e-05,2]
[344031516,1733231432316,-180.02,7.168e-05,2]
[344031517,1733231432325,-409.98,7.479e-05,2]
[344031518,1733231432428,-90.02,7.479e-05,2]
[344031519,1733231432438,-150.0,7.634e-05,2]
[344031520,1733231432447,-159.89519818,7.673e-05,2]
[344031521,1733231432456,-1000.0,7.69e-05,2]
[344031522,1733231432466,-699.7676854,7.692e-05,2]
[344031523,1733231432476,-974.62385853,7.697e-05,2]
[344031524,1733231432486,-1000.0,7.698e-05,2]
[344031525,1733231432495,-1000.0,7.698e-05,2]
[344031526,1733231432505,-150.0,7.698e-05,2]
[344031527,1733231432514,-150.0,7.699e-05,2]
[344031528,1733231432524,-250.54186979,7.699e-05,2]
[344031529,1733231432534,-1316.694,7.699e-05,2]
[344031530,1733231432544,-1197.59230257,7.699e-05,2]
[344031531,1733231432557,-0.79769743,7.699e-05,2]
[344031532,1733231432567,-1000.0,7.699e-05,2]
[344031533,1733231432577,-1000.0,7.699e-05,2]
[344031534,1733231432587,-1000.0,7.699e-05,2]
[344031535,1733231432598,-1084.2772469,7.699e-05,2]
[344031536,1733231432608,-13085.42505567,7.7e-05,2]
[344031537,1733231432619,-12616.0,7.7e-05,2]
[344031538,1733231432663,-2643.39459498,7.7e-05,2]
[344031539,1733231432720,-949.40846,7.7e-05,2]
[344031551,1733231438359,-50016.6467519,7.7e-05,2]
[344031552,1733231438371,-666.48351987,7.7e-05,2]
[344031554,1733231438487,-564.85946475,7.7e-05,2]
[344031555,1733231438497,-9484.38175824,7.7e-05,2]
[344031556,1733231438509,-186983.95228051,7.7e-05,2]
[344031557,1733231438545,-3004.95439221,7.7e-05,2]
[344031558,1733231438556,-994.75416485,7.7e-05,2]
[344031559,1733231438610,-8738.61600217,7.7e-05,2]
[344031560,1733231438663,-782.2744295,7.7e-05,2]
[344031561,1733231438674,-19297.47815115,7.7e-05,2]
[344031562,1733231438685,-538.2334,7.7e-05,2]
[344031613,1733231440414,-334.78795263,7.7e-05,2]
[344031614,1733231440426,-2375.1059785,7.7e-05,2]
[344031615,1733231440457,-9494.1,7.7e-05,2]
[344031616,1733231440576,-528.81000002,7.7e-05,2]
[344031617,1733231440587,-1000.0,7.7e-05,2]
[344031640,1733231443517,-24554.25298507,7.7e-05,2]
[344031641,1733231443528,-48761.5,7.7e-05,2]
[344031642,1733231443543,-1481.76760604,7.7e-05,2]
[344031643,1733231443585,-266.86292147,7.7e-05,2]
[344031644,1733231443627,-551.50979087,7.7e-05,2]
[344031645,1733231443639,-5522.84441448,7.7e-05,2]
[344031646,1733231443650,-5991.51685472,7.7e-05,2]
[344031647,1733231443661,-2280.65374961,7.7e-05,2]
[344031648,1733231443673,-6766.32481568,7.7e-05,2]
[344031649,1733231443684,-5758.124427,7.7e-05,2]
[344031650,1733231443696,-4140.43406494,7.7e-05,2]
[344031651,1733231443736,-3461.21361883,7.7e-05,2]
[344031652,1733231443747,-2991.65790677,7.7e-05,2]
[344031653,1733231443759,-3090.38057832,7.7e-05,2]
[344031654,1733231443770,-3010.31824791,7.7e-05,2]
[344031655,1733231443781,-2995.81590024,7.7e-05,2]
[344031656,1733231443792,-4107.98975532,7.7e-05,2]
[344031661,1733231446259,-2357.14259049,7.7e-05,2]
[344031662,1733231446328,-164.30684165,7.699e-05,2]
[344031663,1733231446338,-8885.35625796,7.7e-05,2]
[344031664,1733231446356,-1359.474,7.7e-05,2]
[344031665,1733231446401,-4250.66500885,7.7e-05,2]
[344031666,1733231446413,-37104.7140137,7.7e-05,2]
[344031667,1733231446564,-874.08293454,7.7e-05,2]
[344031671,1733231560437,12202.54,7.144e-05,2]
[344031673,1733231883902,250.0,7.097e-05,2]
[344031690,1733232232974,180.02,6.989e-05,2]
[344032286,1733232631571,-167.94881,7.473e-05,2]
[344032287,1733232631581,-3606.98,7.5e-05,2]
[344032288,1733232631590,-300.0,7.545e-05,2]
[344032289,1733232631600,-300.0,7.545e-05,2]
[344032290,1733232631609,-129.79259,7.546e-05,2]
[344032291,1733232631834,-955.10551016,7.546e-05,2]
[344032292,1733232631844,-6057.87,7.546e-05,2]
[344032293,1733232631854,-523.0,7.6e-05,2]
[344032294,1733232631864,-167.94881,7.66e-05,2]
[344032295,1733232631873,-17569.00339546,7.688e-05,2]
[344032296,1733232631883,-150.0,7.689e-05,2]
[344032297,1733232631892,-25824.4962771,7.69e-05,2]
[344032298,1733232631902,-277.35,7.69e-05,2]
[344032299,1733232631914,-150.0,7.699e-05,2]
[344032300,1733232631923,-1053.356,7.699e-05,2]
[344032301,1733232631932,-1148.46,7.699e-05,2]
[344032302,1733232631942,-136824.41000747,7.7e-05,2]
[344032303,1733232631958,-11888.32726053,7.7e-05,2]
[344032304,1733232631998,-372.9696363,7.7e-05,2]
[344032305,1733232632037,-493.88065182,7.7e-05,2]
[344032338,1733232637942,-1340.56749846,7.7e-05,2]
[344032339,1733232637994,-189334.41773672,7.7e-05,2]
[344032340,1733232638007,-17497.98,7.7e-05,2]
[344032341,1733232638018,-20601133.0256081,7.7e-05,2]
[344032342,1733232638028,-204.0,7.7e-05,2]
[344032343,1733232638038,-202.0,7.7e-05,2]
[344032344,1733232638049,-202.0,7.7e-05,2]
[344032345,1733232638059,-216.0,7.7e-05,2]
[344032346,1733232638069,-216.0,7.7e-05,2]
[344032347,1733232638079,-202.0,7.7e-05,2]
[344032348,1733232638090,-216.0,7.7e-05,2]
[344032349,1733232638100,-202.0,7.7e-05,2]
[344032350,1733232638110,-216.0,7.7e-05,2]
[344032351,1733232638120,-202.0,7.7e-05,2]
[344032352,1733232638130,-216.0,7.7e-05,2]
[344032353,1733232638140,-216.0,7.7e-05,2]
[344032354,1733232638150,-216.0,7.7e-05,2]
[344032355,1733232638161,-202.0,7.7e-05,2]
[344032356,1733232638171,-210.0,7.7e-05,2]
[344032357,1733232638181,-210.0,7.7e-05,2]
[344032358,1733232638191,-210.0,7.7e-05,2]
[344032359,1733232638200,-216.0,7.7e-05,2]
[344032360,1733232638209,-216.0,7.7e-05,2]
[344032361,1733232638219,-2085.0,7.7e-05,2]
[344032362,1733232638229,-25000.0,7.7e-05,2]
[344032363,1733232638238,-1584.34936771,7.7e-05,2]
[344032364,1733232638251,-600.0,7.7e-05,2]
[344032365,1733232638261,-600.0,7.7e-05,2]
[344032366,1733232638270,-16942314.14432599,7.7e-05,2]
[344032367,1733232638311,-568.66698375,7.7e-05,2]
[344032368,1733232638356,-9069.45559517,7.7e-05,2]
[344032369,1733232638375,-21517.44274947,7.7e-05,2]
[344032412,1733232639926,-5643.4234,7.7e-05,2]
[344032416,1733232639955,-406.73265831,7.7e-05,2]
[344032440,1733232642564,-948.1,7.7e-05,2]
[344032441,1733232642616,-5989.00311136,7.7e-05,2]
[344032442,1733232642627,-8201.94120677,7.7e-05,2]
[344032443,1733232642742,-643.67226032,7.7e-05,2]
[344032444,1733232642754,-47032.61775397,7.7e-05,2]
[344032445,1733232642877,-3402.4175976,7.7e-05,2]
[344032446,1733232642888,-8044.13624077,7.7e-05,2]
[344032447,1733232642899,-5151.1983603,7.7e-05,2]
[344032448,1733232642911,-2909.96561858,7.7e-05,2]
[344032449,1733232642931,-537.1366,7.7e-05,2]
[344032485,1733232645439,-15876.78807,7.7e-05,2]
[344032493,1733232645528,-1944.0,7.7e-05,2]
[344032496,1733232645821,-45827.80999934,7.7e-05,2]
[344032573,1733232684026,200.0,7e-05,2]
[344032580,1733232685801,500.0,7.1e-05,2]
[344032617,1733232817329,250.0,7.035e-05,2]
[344032619,1733232903360,994.99999998,0.0001551,30]
[344032620,1733232933474,150.55,7.013e-05,2]
[344032623,1733233136697,10000.0,0.0001511,44]
[344032628,1733233494954,250.0,6.951e-05,2]
[344032638,1733233556462,328.86,6.991e-05,2]
[344033578,1733233831759,-150.0,7.562e-05,2]
[344033579,1733233831769,-300.0,7.599e-05,2]
[344033580,1733233831785,-193.725,7.6e-05,2]
[344033581,1733233831951,-306.275,7.6e-05,2]
[344033582,1733233831961,-344.3750005,7.6e-05,2]
[344033583,1733233831973,-647.40125996,7.6e-05,2]
[344033584,1733233831983,-912.4478463,7.6e-05,2]
[344033585,1733233831994,-162.42070407,7.673e-05,2]
[344033586,1733233832004,-500.0,7.673e-05,2]
[344033587,1733233832014,-280.56282651,7.673e-05,2]
[344033588,1733233832024,-500.0,7.673e-05,2]
[344033589,1733233832034,-150.0,7.699e-05,2]
[344033590,1733233832044,-1000.0,7.699e-05,2]
[344033591,1733233832054,-759.0,7.699e-05,2]
[344033592,1733233832064,-1000.0,7.699e-05,2]
[344033593,1733233832074,-1000.0,7.699e-05,3]
[344033594,1733233832084,-1000.0,7.699e-05,3]
[344033595,1733233832094,-1100.61,7.699e-05,2]
[344033596,1733233832104,-354.91755882,7.699e-05,2]
[344033597,1733233832114,-150.0,7.699e-05,2]
[344033598,1733233832124,-10067.10499194,7.7e-05,2]
[344033599,1733233834435,-1401.38969945,7.7e-05,2]
[344033600,1733233834457,-940.0,7.7e-05,2]
[344033601,1733233834502,-9326.54464436,7.7e-05,2]
[344033602,1733233834515,-228264.96066425,7.7e-05,2]
[344033603,1733233834526,-730.0,7.7e-05,2]
[344033604,1733233834537,-28050.46033575,7.7e-05,2]
[344033605,1733233834646,-10608.0,7.7e-05,2]
[344033620,1733233838873,-4166.56781528,7.7e-05,2]
[344033621,1733233838886,-1629.32717241,7.7e-05,2]
[344033622,1733233838900,-1296.036915,7.7e-05,2]
[344033623,1733233838930,-650.65,7.7e-05,2]
[344033624,1733233838943,-1270.70457037,7.7e-05,2]
[344033625,1733233839012,-945.25,7.7e-05,2]
[344033626,1733233839026,-362.41214183,7.7e-05,2]
[344033627,1733233839059,-36445153.9867727,7.7e-05,2]
[344033628,1733233839071,-50878.35000001,7.7e-05,2]
[344033635,1733233839960,-1041.3,7.7e-05,2]
[344033636,1733233839972,-18906.8,7.7e-05,2]
[344033637,1733233839984,-40882.3860095,7.7e-05,2]
[344033638,1733233839995,-57117.6139905,7.7e-05,2]
[344033639,1733233840007,-383.71912478,7.7e-05,2]
[344033640,1733233840020,-2291.00129561,7.7e-05,2]
[344033641,1733233840046,-657.61995568,7.7e-05,2]
[344033642,1733233840059,-1451.88350013,7.7e-05,2]
[344033643,1733233840084,-9002.91363082,7.7e-05,2]
[344033644,1733233840100,-377.866807,7.7e-05,2]
[344033653,1733233842871,-141565.43625843,7.7e-05,2]
[344033654,1733233842910,-7783.77926105,7.7e-05,2]
[344033655,1733233842923,-116103.76845063,7.7e-05,2]
[344033656,1733233842958,-793.69641,7.7e-05,2]
[344033657,1733233843009,-5560.86271534,7.7e-05,2]
[344033658,1733233843055,-695.95000091,7.7e-05,2]
[344033659,1733233843068,-408.39999966,7.7e-05,2]
[344033660,1733233843104,-5194.5894626,7.7e-05,2]
[344033661,1733233843117,-5073.76400755,7.7e-05,2]
[344033662,1733233843129,-6247.71173083,7.7e-05,2]
[344033663,1733233843159,-6134.68861293,7.7e-05,2]
[344033664,1733233843171,-780.85741381,7.7e-05,2]
[344033665,1733233843211,-3630.38491404,7.7e-05,2]
[344033666,1733233843223,-10512.72959987,7.7e-05,2]
[344033667,1733233843235,-3616.50951782,7.7e-05,2]
[344033668,1733233843247,-390.81212767,7.7e-05,2]
[344033669,1733233843259,-385.576588,7.7e-05,2]
[344033681,1733233845769,-660.51501,7.7e-05,2]
[344033682,1733233845812,-95.48499,7.7e-05,2]
[344033683,1733233845823,-7141.01501,7.7e-05,2]
[344033684,1733233845838,-1789.44802501,7.7e-05,2]
[344033685,1733233847543,-483.91,7.7e-05,2]
[344033686,1733233847682,-74969.70000057,7.7e-05,2]
[344033687,1733233847714,-18536.89028654,7.7e-05,2]
[344033689,1733233847864,-49576.81419517,7.7e-05,2]
[344033690,1733233847889,-265.927514,7.7e-05,2]
[344033693,1733233847936,-2604.40000126,7.7e-05,2]
[344033706,1733233862346,400.0,7.1e-05,2]
[344033730,1733234191688,250.0,6.772e-05,2]
[344033731,1733234242120,170.15,6.787e-05,2]
[344033734,1733234603291,3350.2,6.798e-05,2]
[344033736,1733234803405,-300.0,7.382e-05,2]
[344033737,1733234803430,-680.49879,7.383e-05,2]
[344033738,1733234803454,-6620.33520126,7.383e-05,2]
[344033739,1733234803479,-3436.0,7.397e-05,2]
[344033740,1733234803508,-1079.0,7.507e-05,2]
[344033741,1733234803531,-150.99,7.51e-05,2]
[344033742,1733234803556,-1102.45543617,7.546e-05,2]
[344033743,1733234803580,-2000.0,7.599e-05,2]
[344033744,1733234803604,-310.1934,7.599e-05,2]
[344033745,1733234803632,-252.4344,7.599e-05,2]
[344033746,1733234803656,-977.56348002,7.6e-05,2]
[344033747,1733234803679,-500.0,7.6e-05,2]
[344033748,1733234803702,-1000.0,7.6e-05,2]
[344033749,1733234803728,-368.9931,7.6e-05,2]
[344033750,1733234803753,-150.0,7.609e-05,2]
[344033751,1733234803776,-13709.0,7.61e-05,2]
[344033752,1733234803799,-511.106,7.61e-05,2]
[344033753,1733234803823,-170.15,7.635e-05,2]
[344033754,1733234803846,-1011.0,7.671e-05,2]
[344033755,1733234803869,-5212.5196,7.671e-05,2]
[344033756,1733234803893,-589.51601263,7.673e-05,2]
[344033757,1733234803916,-500.0,7.673e-05,2]
[344033758,1733234803941,-500.0,7.673e-05,2]
[344033759,1733234803966,-431.87406709,7.68e-05,2]
[344033760,1733234803992,-200.0,7.688e-05,2]
[344033761,1733234804015,-200.0,7.689e-05,2]
[344033762,1733234804038,-552.7204053,7.689e-05,2]
[344033763,1733234804061,-529.2191423,7.689e-05,2]
[344033764,1733234804085,-200.0,7.692e-05,2]
[344033765,1733234804108,-200.0,7.692e-05,2]
[344033766,1733234804132,-431.87406709,7.693e-05,2]
[344033767,1733234804157,-200.0,7.693e-05,2]
[344033768,1733234804184,-431.87406709,7.693e-05,2]
[344033769,1733234804208,-431.87406709,7.695e-05,2]
[344033770,1733234804235,-498.275728,7.695e-05,2]
[344033771,1733234804261,-200.0,7.696e-05,2]
[344033772,1733234804286,-431.87406709,7.697e-05,2]
[344033773,1733234804310,-200.0,7.697e-05,2]
[344033774,1733234804335,-431.87406709,7.698e-05,2]
[344033775,1733234804359,-157.456,7.699e-05,2]
[344033776,1733234804385,-150.0,7.699e-05,2]
[344033777,1733234804409,-313.61856437,7.699e-05,2]
[344033778,1733234804433,-1217.9474183,7.699e-05,2]
[344033779,1733234804457,-60035.0,7.699e-05,2]
[344033780,1733234804487,-1466.345,7.699e-05,2]
[344033781,1733234804514,-566.76354058,7.699e-05,2]
[344033782,1733234804538,-1108.42,7.699e-05,2]
[344033783,1733234804563,-7343.732784,7.699e-05,2]
[344033784,1733234804587,-1185.0,7.7e-05,2]
[344033785,1733234804613,-200.0,7.7e-05,2]
[344033786,1733234804644,-879552.50159453,7.7e-05,2]
[344034223,1733234864047,150.0,6.969e-05,2]
[344034224,1733234864070,7.93,6.969e-05,2]
[344034225,1733234867815,142.07,6.969e-05,2]
[344034226,1733234867864,632.27,6.969e-05,2]
[344034227,1733234870661,429.31,6.95e-05,2]
[344034228,1733234878667,250.0,6.95e-05,2]
[344034291,1733234983735,1500.0,6.842e-05,2]
[344034293,1733234999926,2999.8,6.842e-05,2]
[344034294,1733235002693,150.0,6.95e-05,2]
[344034295,1733235002812,150.0,6.95e-05,2]
[344034296,1733235002983,150.0,6.95e-05,2]
[344034297,1733235003046,150.0,6.95e-05,2]
[344034298,1733235003500,150.0,6.95e-05,2]
[344034299,1733235003737,150.0,6.95e-05,2]
[344034300,1733235004055,150.0,6.95e-05,2]
[344034301,1733235004281,266.10610536,6.95e-05,2]
[344034302,1733235017847,841.29,6.897e-05,2]
[344034303,1733235018494,792.63,6.897e-05,2]
[344034326,1733235032123,-500.0,7.184e-05,2]
[344034327,1733235032132,-161.33,7.194e-05,2]
[344034329,1733235032142,-1400.0,7.2e-05,2]
[344034330,1733235032151,-2800.0,7.3e-05,2]
[344034331,1733235032164,-300.0,7.322e-05,2]
[344034332,1733235032175,-7455.0,7.323e-05,2]
[344034333,1733235032184,-4300.0,7.4e-05,2]
[344034334,1733235032194,-5700.0,7.5e-05,2]
[344034335,1733235032204,-1145.18089801,7.541e-05,2]
[344034336,1733235032213,-1004.99492776,7.546e-05,2]
[344034337,1733235032225,-150.0,7.599e-05,2]
[344034338,1733235032235,-7200.0,7.6e-05,2]
[344034339,1733235032245,-2500.0,7.6e-05,2]
[344034340,1733235032254,-345.2995,7.6e-05,2]
[344034341,1733235032264,-280.6114615,7.694e-05,2]
[344034342,1733235032273,-280.6114615,7.695e-05,2]
[344034343,1733235032282,-918.0,7.7e-05,2]
[344034344,1733235032291,-181479.25252626,7.7e-05,2]
[344034345,1733235032323,-1462.00139375,7.7e-05,2]
[344034346,1733235032334,-2573.44996088,7.7e-05,2]
[344034347,1733235032345,-18095.67775924,7.7e-05,2]
[344034348,1733235035314,-5178.66302713,7.7e-05,2]
[344034349,1733235035326,-9152.4958,7.7e-05,2]
[344034350,1733235035338,-358.32518929,7.7e-05,2]
[344034351,1733235035350,-194502.51746659,7.7e-05,2]
[344034352,1733235035361,-476.7019935,7.7e-05,2]
[344034353,1733235035400,-5931.32096244,7.7e-05,2]
[344034354,1733235035477,-8405.8347862,7.7e-05,2]
[344034355,1733235035490,-328.14191923,7.7e-05,2]
[344034356,1733235035503,-578.0,7.7e-05,2]
[344034357,1733235035515,-340.20482956,7.7e-05,2]
[344034358,1733235035575,-87851.3006,7.7e-05,2]
[344034359,1733235035588,-2535.0,7.7e-05,2]
[344034407,1733235038174,-24000.00005,7.7e-05,2]
[344034408,1733235038186,-3240.1363108,7.7e-05,2]
[344034409,1733235038198,-25353.85964241,7.7e-05,2]
[344034412,1733235038374,-1026.82,7.7e-05,2]
[344034413,1733235038386,-1379.3469946,7.7e-05,2]
[344034414,1733235038397,-6965.22629,7.7e-05,2]
[344034415,1733235038409,-359.12,7.7e-05,2]
[344034416,1733235038437,-400.97885,7.7e-05,2]
[344034417,1733235038471,-4857.7999346,7.7e-05,2]
[344034418,1733235038483,-13875.51982227,7.7e-05,2]
[344034419,1733235038496,-17002.61370626,7.7e-05,2]
[344034421,1733235038507,-6340.76730011,7.7e-05,2]
[344034422,1733235038519,-6701.37898587,7.7e-05,2]
[344034423,1733235038531,-3434.10726597,7.7e-05,2]
[344034424,1733235038541,-645.3714624,7.7e-05,2]
[344034425,1733235038553,-331.10381628,7.7e-05,2]
[344034426,1733235038565,-1824.3437399,7.7e-05,2]
[344034427,1733235038625,-1177.0995,7.7e-05,2]
[344034428,1733235038637,-1074.21650749,7.7e-05,2]
[344034430,1733235038649,-1880.87,7.7e-05,2]
[344034431,1733235038667,-1251.25,7.7e-05,2]
[344034432,1733235038680,-1250.75,7.7e-05,2]
[344034433,1733235038692,-47049.49999999,7.7e-05,2]
[344034434,1733235038704,-35500.0,7.7e-05,2]
[344034435,1733235038743,-19948.0,7.7e-05,2]
[344034436,1733235038839,-1317.78265577,7.7e-05,2]
[344034437,1733235038851,-3237.782827,7.7e-05,2]
[344034438,1733235038862,-20666.23022055,7.7e-05,2]
[344034439,1733235038874,-470.17,7.7e-05,2]
[344034445,1733235039996,-275.9999997,7.7e-05,2]
[344034447,1733235040008,-7433.17013892,7.7e-05,2]
[344034450,1733235040020,-1695.0,7.7e-05,2]
[344034452,1733235040032,-1112.54139268,7.7e-05,2]
[344034453,1733235040154,-730.18733609,7.7e-05,2]
[344034454,1733235040167,-252.339999,7.7e-05,2]
[344034455,1733235040186,-266.865,7.7e-05,2]
[344034456,1733235040316,-550.720004,7.7e-05,2]
[344034457,1733235040331,-2200.0,7.7e-05,2]
[344034458,1733235040344,-10877.06808252,7.7e-05,2]
[344034459,1733235040415,-251.3310766,7.7e-05,2]
[344034460,1733235040433,-318.11453161,7.7e-05,2]
[344034461,1733235040444,-1297.07311305,7.7e-05,2]
[344034462,1733235040456,-376.988612,7.7e-05,2]
[344034463,1733235040468,-503.99732914,7.7e-05,2]
[344034464,1733235040481,-1940.61348,7.7e-05,2]
[344034465,1733235040597,-253.575,7.7e-05,2]
[344034476,1733235043115,-617.62083179,7.3e-05,2]
[344034477,1733235043125,-194.7211,7.6e-05,2]
[344034478,1733235043136,-500.0,7.673e-05,2]
[344034479,1733235043145,-7728.57229875,7.7e-05,2]
[344034480,1733235043159,-3562.0,7.7e-05,2]
[344034481,1733235043170,-25264.77262186,7.7e-05,2]
[344034482,1733235043187,-5000.0035,7.7e-05,2]
[344034483,1733235043223,-267.368,7.7e-05,2]
[344034484,1733235043247,-254.15732742,7.7e-05,2]
[344034485,1733235043337,-4938.79987,7.7e-05,2]
[344034486,1733235043349,-3847.64928451,7.7e-05,2]
[344034487,1733235043361,-18367.47861213,7.7e-05,2]
[344034488,1733235043373,-3507.29101353,7.7e-05,2]
[344034489,1733235043384,-5704.40685399,7.7e-05,2]
[344034490,1733235043397,-1083.78383894,7.7e-05,2]
[344034491,1733235043409,-5309.92532067,7.7e-05,2]
[344034492,1733235043426,-5571.7951392,7.7e-05,2]
[344034493,1733235043439,-5693.11325349,7.7e-05,2]
[344034494,1733235043452,-82789.78313156,7.7e-05,2]
[344034495,1733235043491,-3623.96714415,7.7e-05,2]
[344034496,1733235043515,-9430.0,7.7e-05,2]
[344034497,1733235043534,-22311.98865847,7.7e-05,2]
[344034498,1733235043653,-3929.47006254,7.7e-05,2]
[344034499,1733235043667,-1505.78440604,7.7e-05,2]
[344034500,1733235043685,-285.12640011,7.7e-05,2]
[344034501,1733235043757,-9592.3989,7.7e-05,2]
[344034502,1733235043769,-1206.115465,7.7e-05,2]
[344034503,1733235043782,-9400.0,7.7e-05,2]
[344034504,1733235043794,-320.92137165,7.7e-05,2]
[344034505,1733235043806,-525.67723209,7.7e-05,2]
[344034506,1733235043818,-370.77435824,7.7e-05,2]
[344034507,1733235043829,-938.99277969,7.7e-05,2]
[344034508,1733235043841,-12826.40994446,7.7e-05,2]
[344034510,1733235043915,-104445.37721589,7.7e-05,2]
[344034511,1733235043960,-941.89095,7.7e-05,2]
[344034512,1733235043973,-716.73060001,7.7e-05,2]
[344034513,1733235044002,-4948.35933177,7.7e-05,2]
[344034514,1733235044018,-9885.03871316,7.7e-05,2]
[344034515,1733235044029,-45213.86123514,7.7e-05,2]
[344034516,1733235044040,-23641.07738244,7.7e-05,2]
[344034546,1733235045940,-250.82000002,7.7e-05,2]
[344034549,1733235045953,-292.875,7.7e-05,2]
[344034554,1733235045965,-133.30499998,7.7e-05,2]
[344034557,1733235045975,-204.32000002,7.7e-05,2]
[344034561,1733235045987,-336.125,7.7e-05,2]
[344034572,1733235046027,-5830.84234818,7.7e-05,2]
[344034575,1733235046039,-614.7847,7.7e-05,2]
[344034579,1733235046050,-1181.60303719,7.7e-05,2]
[344034582,1733235046062,-3066.45728703,7.7e-05,2]
[344034585,1733235046073,-3149.99999878,7.7e-05,2]
[344034588,1733235046085,-359.00939672,7.7e-05,2]
[344034600,1733235046155,-51177.1482213,7.7e-05,2]
[344034603,1733235046167,-112500.0,7.7e-05,2]
[344034604,1733235046182,-466.2612363,7.7e-05,2]
[344034605,1733235046209,-924.51669546,7.7e-05,2]
[344034606,1733235046221,-4654.80581678,7.7e-05,2]
[344034607,1733235046243,-551.43730736,7.7e-05,2]
[344034608,1733235046265,-188980.99301223,7.7e-05,2]
[344034609,1733235046278,-37857.64744496,7.7e-05,2]
[344034610,1733235046289,-1760.00000008,7.7e-05,2]
[344034611,1733235046313,-2581.6,7.7e-05,2]
[344034612,1733235046724,-28190.25954224,7.7e-05,2]
[344034639,1733235064455,1907.15,7.108e-05,2]
[344034640,1733235081775,1758.16,7.126e-05,2]
[344034644,1733235160665,4152.35,6.816e-05,2]
[344034646,1733235189560,200.0,6.818e-05,2]
[344034647,1733235196674,23900.0,6.818e-05,2]
[344034648,1733235226456,787.68,6.818e-05,2]
[344034650,1733235278560,384.15,6.771e-05,2]
[344034652,1733235337908,329.5,6.767e-05,3]
[344034653,1733235344359,10000.0,0.0001511,44]
[344034654,1733235419631,2222.39,6.767e-05,2]
[344034655,1733235438247,4462.65,6.768e-05,2]
[344034656,1733235475181,516.2,6.774e-05,2]
[344034657,1733235509494,250.0,6.76e-05,2]
[344034658,1733235554360,1852.42,6.792e-05,2]
[344034660,1733235603856,250.0,6.792e-05,2]
[344034661,1733235685172,1500.0,6.745e-05,2]
[344034662,1733235706899,200.0,6.745e-05,2]
[344034668,1733235827243,23900.0,6.745e-05,2]
[344034671,1733235955754,4000.0,6.94e-05,2]
[344034672,1733235968158,1000.000001,7e-05,2]
[344034696,1733236153882,250.85,6.715e-05,2]
[344035013,1733236208043,250.0,6.713e-05,2]
[344035014,1733236208170,10000.0,7.163e-05,2]